{"text_format":"1","workbook":"xlsx","n_sheets":3,"sheets":["Alcaldías","Gobernaciones","Control de Cambios"],"not_rendered":{"charts":0,"images":1,"macros":1,"external_links":0,"defined_names":2,"comments":0,"pivot_tables":0},"unopened":[],"bounds":{"document_bytes":16777216,"sheet_cells":100000,"rows_first":2000,"rows_last":500,"rows_between":2000,"halvings":0,"cell_chars":16384,"cell_head_chars":4096},"cells_cut":0,"cells_raw":0,"read":"whole","date_system":"1900"}

{"sheet":"Alcaldías","index":0,"n_rows":137,"n_cols":5,"rows_kept":137,"cut":false,"hidden":false,"merged":[[136,1,136,4],[133,1,133,3],[135,1,135,4],[130,1,130,3],[131,1,131,3],[132,1,132,3],[124,1,124,3],[127,1,127,4],[128,1,128,3],[129,1,129,3],[105,1,105,3],[116,1,116,3],[122,2,122,3],[123,2,123,3],[115,2,115,3],[118,1,118,4],[119,2,119,3],[120,2,120,3],[121,2,121,3],[110,2,110,3],[111,2,111,3],[112,2,112,3],[113,2,113,3],[114,2,114,3],[107,1,107,4],[108,2,108,3],[109,2,109,3],[99,2,99,3],[100,2,100,3],[101,2,101,3],[102,2,102,3],[103,2,103,3],[93,2,93,3],[96,1,96,4],[97,2,97,3],[98,2,98,3],[94,1,94,3],[88,1,88,4],[73,1,73,3],[89,2,89,3],[90,2,90,3],[91,2,91,3],[92,2,92,3],[78,2,78,3],[84,2,84,3],[85,2,85,3],[79,2,79,3],[80,2,80,3],[81,2,81,3],[82,2,82,3],[83,2,83,3],[86,1,86,3],[71,2,71,3],[57,1,57,3],[65,1,65,3],[72,2,72,3],[75,1,75,4],[76,2,76,3],[77,2,77,3],[68,2,68,3],[69,2,69,3],[67,1,67,4],[70,2,70,3],[61,2,61,3],[62,2,62,3],[63,2,63,3],[64,2,64,3],[54,2,54,3],[55,2,55,3],[56,2,56,3],[59,1,59,4],[60,2,60,3],[49,2,49,3],[50,2,50,3],[51,2,51,3],[52,2,52,3],[53,2,53,3],[44,2,44,3],[45,2,45,3],[46,2,46,3],[47,2,47,3],[48,2,48,3],[19,2,19,3],[25,2,25,3],[26,2,26,3],[40,2,40,3],[41,2,41,3],[42,2,42,3],[43,2,43,3],[32,2,32,3],[35,2,35,3],[36,2,36,3],[37,2,37,3],[38,2,38,3],[39,2,39,3],[0,1,5,1],[0,2,1,3],[0,4,1,4],[2,2,3,3],[2,4,3,4],[4,2,5,3],[104,2,104,3],[7,1,7,4],[29,1,29,4],[30,2,30,3],[31,2,31,3],[33,2,33,3],[34,2,34,3],[24,2,24,3],[27,1,27,3],[13,1,13,4],[20,2,20,3],[21,2,21,3],[22,2,22,3],[23,2,23,3],[15,1,15,4],[16,2,16,3],[17,2,17,3],[18,2,18,3]]}
[null,null,"FORMATO DE DOCUMENTO TÉCNICO DE RESULTADOS ALCALDIAS",null,"Código:200,07,15-38"]
[]
[null,null,"DIRECCIÓN DE GESTIÓN INTERINSTITUCIONAL",null,"Versión:01"]
[]
[null,null,"CERTIFICACIÓN TERRITORIAL",null,"Fecha: 16/12/2022"]
[null,null,null,null,"Paginas:"]
[]
[11001,"CERTIFICACIÓN DE ENTIDADES TERRITORIALES \nRESULTADOS PRELIMINARES\nVIGENCIA - AÑO"]
[]
[null,"Departamento:",null,"Municipio:"]
[]
[null,"Código DANE:",null,"Resultado:",{"$f":"IF(AND(E134>=0,E134<=0.25),\"Deficiente\",IF(AND(E134>0.25,E134<0.5),\"Baja\",IF(AND(E134>=0.5,E134<=0.75),\"Medio\",\"Ejemplar\")))","v":{"$error":"#VALUE!"}}]
[]
[null,"La Unidad para la Atención y Reparación Integral a las Víctimas atendiendo a lo establecido en la Ley 1448 de 2011 en su artículo 168, realiza anualmente la certificación de las entidades territoriales del país. La cual es un mecanismo de seguimiento a la Política Pública de Víctimas y tiene como objetivo medir la contribución de las entidades territoriales al goce efectivo de los derechos de las víctimas, a través del cumplimiento de sus competencias en materia de prevención, protección, asistencia, atención y reparación integral, en el marco de las obligaciones o competencias contempladas en la Ley.\nPara la vigencia 2021, la medición de la Certificación Territorial se fundamenta en los resultados de la implementación de las acciones y gestión realizada por las entidades territoriales de acuerdo con los componentes de la Política Pública de víctimas, así como sus competencias territoriales. Lo anterior, permite valorar la contribución al goce efectivo de los derechos de la población víctima en la implementación y seguimiento a la política pública de víctimas en su territorio.   "]
[]
[null," CRITERIOS ALCALDIA - COMPONENTE DE PREVENCIÓN Y PROTECCIÓN"]
[null,"CRITERIOS","OBSERVACIÓN",null,"PUNTAJE OBTENIDO"]
[null,"PyP. A. 1 Aprobación/actualización/validación del Plan Integral de Prevención y Protección."]
[null,"PyP. A. 2\nParticipación de los delegados de las mesas de víctimas en la aprobación/ actualización/validación del Plan Integral de Prevención y Protección."]
[null,"PyP. A. 3 \nRealización de capacitaciones a víctimas/funcionarios en temas de Derechos Humanos.\nImplementación del  PIPP\n(Criterio opcional)."]
[null,"PyP. A. 4\nCumplimento de las recomendaciones establecidas para la EETT en las Alertas Tempranas (CIPRAT)."]
[null,"PyP. A. 5\nAcciones y procesos de sensibilización para prevenir el reclutamiento forzado de niños, niñas y adolescentes por parte de actores ilegales realizados.\n (Prevención a la vida, integridad, libertad y seguridad)."]
[null,"PyP. A. 6\nAcciones y procesos de sensibilización que requiere el municipio para prevenir el riesgo de violencia sexual por parte de actores armados realizados. (Prevención a la vida, integridad, libertad y seguridad)."]
[null,"PyP. A. 7\nAprobación/actualización/validación del Plan de Contingencia."]
[null,"PyP. A. 8\nParticipación de los delegados de las mesas de víctimas en la elaboración y/o actualización del Plan de contingencia."]
[null,"PyP. A. 9\nAcciones implementadas en el marco de la ruta de protección a personas y/o comunidades a cargo de la entidad territorial."]
[null,"PyP. A. 10\nPresupuesto en el componente de Prevención y Protección\n(Inversión)."]
[null,"CALIFICACIÓN ",null,null,{"$f":"IFERROR(AVERAGE(E18:E27),\"No aplica\")","v":"No aplica"}]
[]
[null," CRITERIOS ALCALDIA - COMPONENTE DE ASISTENCIA Y ATENCIÓN"]
[null,"CRITERIOS","OBSERVACIÓN",null,"PUNTAJE OBTENIDO"]
[null,"AyA. A. 1\nHogares/Personas que fueron atendidos con Ayuda Humanitaria Inmediata en uno o varios de los siguientes componentes: Alimentación, Alojamiento, Aseo, Utensilios de Cocina, Transporte o Saneamiento Básico durante vigencia fiscal."]
[null,"AyA. A. 2\nEjecución del presupuesto asignado durante la vigencia fiscal en la medida de AHI."]
[null,"AyA. A. 3\nHogares víctimas ubicados en el sector rural y urbano que serán vinculados a programas de mejoramiento de vivienda."]
[null,"AyA. A. 4\nHogares víctimas, incluidos en el RUV, que serán vinculados a programas para adquisición de vivienda propia por la administración municipal en el sector rural y urbano."]
[null,"AyA. A. 5\nEjecución del presupuesto asignado durante la vigencia fiscal en la medida de vivienda."]
[null,"AyA. A. 6\nPersonas víctimas afiliadas al Sistema General de Seguridad Social en Salud en la vigencia fiscal."]
[null,"AyA. A. 7\nEjecución del presupuesto asignado durante la vigencia fiscal en la medida de salud."]
[null,"AyA. A. 8\nNúmero niñas, niños y adolescentes víctimas del conflicto en edades escolares, que fueron vinculados al nivel básica y media de educación en la vigencia fiscal."]
[null,"AyA. A. 9\nNúmero niñas, niños y adolescentes víctimas en edades escolares, incluidos en programas de permanencia/calidad."]
[null,"AyA. A. 10\nEjecución de presupuesto asignado durante la vigencia fiscal en la medida de Educación."]
[null,"AyA. A. 11\nPersonas víctimas que fueron vinculados a programas de educación flexible\n(Criterio Opcional)"]
[null,"AyA. A. 12\nNúmero de convenios realizados con universidades públicas para educación superior\n(Criterio Opcional)"]
[null,"AyA. A. 13\nPersonas víctimas vinculados a programas/estrategias/proyectos de emprendimiento en la zona urbana y rural."]
[null,"AyA. A. 14\nPersonas víctimas, con unidades productivas, que fueron vinculados a programas/estrategias/proyectos de fortalecimiento de unidades productivas en la zona urbana y rural."]
[null,"AyA. A. 15\nPersonas víctimas, que fueron vinculados a programas/estrategias/proyectos de empleabilidad en la zona rural y urbana."]
[null,"AyA. A. 16\nPersonas víctimas, que fueron vinculados a programas/estrategias/proyectos de formación para el trabajo en la zona rural."]
[null,"AyA. A. 17\nEjecución de presupuesto asignado durante la vigencia fiscal en la medida de generación de ingresos."]
[null,"AyA. A. 18\nCaracterización de oferta territorial."]
[null,"AyA. A. 19\nNúmero de víctimas vinculadas a programas y/o estrategias de alimentación."]
[null,"AyA. A. 20\nEjecución de presupuesto asignado durante la vigencia fiscal en la medida de Seguridad alimentaria."]
[null,"AyA. A. 21\nNúmero de asistencias fúnebres entregadas oportunamente."]
[null,"AyA. A. 22\nEjecución de presupuesto asignado durante la vigencia fiscal en la medida de asistencia funeraria."]
[null,"AyA. A. 23\nDesignación de un enlace municipal y/o departamental responsable de la atención para el acompañamiento, información y orientación a las víctimas."]
[null,"AyA. A. 24\nPermanencia del enlace municipal de víctimas durante toda la vigencia fiscal."]
[null,"AyA. A. 25\nEjecución del presupuesto asignado durante la vigencia fiscal para el funcionamiento de Centros Regionales."]
[null,"AyA. A. 26\nAcciones de gestión de la entidad Territorial, para la realización de jornadas móviles para la orientación y atención de las víctimas en las zonas más apartadas y de difícil acceso\n(Criterio Opcional)"]
[null,"CALIFICACIÓN ",null,null,{"$f":"IFERROR(AVERAGE(E32:E57),\"No aplica\")","v":"No aplica"}]
[]
[null," CRITERIOS ALCALDIA - COMPONENTE DE REPARACIÓN INTEGRAL - REPRACIÓN COLECTIVA "]
[null,"CRITERIOS","OBSERVACIÓN",null,"PUNTAJE OBTENIDO"]
[null,"RC. A. 1\nFase de alistamiento de los sujetos de reparación colectiva.\nPresentación del sujeto de reparación colectiva ante el CTJT con asistencia de un delegado del Sujeto."]
[null,"RC. A. 2\nAprobación  y presentación de los PIRC. Aprobación de los PIRC en el  Comité Territorial de Justicia Transicional con asistencia de un delegado del Sujeto de Reparación Colectiva"]
[null,"RC. A. 3\nAvance en la implementación de las acciones y actividades que se encuentran en los planes integrales de Reparación Colectiva que son competencia de la entidad territorial durante la vigencia."]
[null,"RC. A. 4\nEjecución de presupuesto del componente de Reparación Colectiva"]
[null,"CALIFICACIÓN ",null,null,{"$f":"IFERROR(AVERAGE(E62:E65),\"No aplica\")","v":"No aplica"}]
[]
[null," CRITERIOS ALCALDIA - COMPONENTE DE REPARACIÓN INTEGRAL - REPARACIÓN INDIVIDUAL"]
[null,"CRITERIOS","OBSERVACIÓN",null,"PUNTAJE OBTENIDO"]
[null,"RI. A. 1\n Implementación de estrategias de rehabilitación desarrolladas por la entidad territorial."]
[null,"RI. A. 2\nEjecución del presupuesto asignado durante la vigencia fiscal en la medida de rehabilitación."]
[null,"RI. A. 3\nNúmero de acciones de medidas de satisfacción y reparación simbólica concertadas e implementadas en su jurisdicción durante la vigencia."]
[null,"RI. A. 4\nEjecución de presupuesto a las medidas de satisfacción."]
[null,"CALIFICACIÓN ",null,null,{"$f":"IFERROR(AVERAGE(E70:E73),\"No aplica\")","v":"No aplica"}]
[]
[null," CRITERIOS ALCALDIA - COMPONENTE DE REPARACIÓN INTEGRAL - RETORNOS Y REUBICACIÓN"]
[null,"CRITERIOS","OBSERVACIÓN",null,"PUNTAJE OBTENIDO"]
[null,"R&R. A. 1\nImplementación de Esquemas Especiales de Acompañamiento Comunitario - EEAC."]
[null,"R&R. A. 2\nSeguimiento a los planes de Retorno Y Reubicación en el marco de los CTJT."]
[null,"R&R. A. 3\nCumplimiento de las acciones implementadas en los planes de Retornos y Reubicaciones."]
[null,"R&R. A. 4\nApreciaciones de seguridad de su jurisdicción vigentes."]
[null,"R&R. A. 5\nCierre de la implementación de los Esquemas Especiales de Acompañamiento Comunitario EEAC en vigencias anteriores."]
[null,"R&R. A. 6\nPlaneación estratégica/destinación de recursos para atención a población víctima de desplazamiento forzado (RyR) en el PAT."]
[null,"R&R. A. 7\nHogares acompañados en procesos de retornos y reubicación."]
[null,"R&R. A. 8\nInversión presupuestal de las entidades territoriales en otras entidades territoriales para el apoyo de Retornos y Reubicación."]
[null,"R&R. A. 9\nEjecución de presupuesto del componente de retornos y reubicación."]
[null,"CALIFICACIÓN ",null,null,{"$f":"IFERROR(AVERAGE(E78:E86),\"No aplica\")","v":"No aplica"}]
[]
[null," CRITERIOS ALCALDIA - COMPONENTE DE REPARACIÓN INTEGRAL - RESTITUCIÓN DE TIERRAS"]
[null,"CRITERIOS","OBSERVACIÓN",null,"PUNTAJE OBTENIDO"]
[null,"RT. A. 1\nAvance de ejecución del presupuesto incluido en el PAT para atender el cumplimiento de las sentencias de Restitución de Tierras en municipios con sentencias de Restitución de Tierras proferidas."]
[null,"RT. A. 2\nAtención a personas o comunidades reconocidas en providencias judiciales de restitución de tierras notificadas, en el marco del cumplimiento de órdenes que vinculan a la entidad territorial."]
[null,"RT. A. 3\nSocialización de la gestión en el cumplimiento de órdenes de sentencias de restitución de tierras que vinculan a la entidad territorial."]
[null,"RT. A. 4\nEntidades territoriales que incluyeron en el PAT programas, proyectos y recursos para garantizar la atención a población victima restituida en cumplimiento a las órdenes contenidas en los fallos."]
[null,"CALIFICACIÓN ",null,null,{"$f":"IFERROR(AVERAGE(E91:E94),\"No aplica\")","v":"No aplica"}]
[]
[null," CRITERIOS ALCALDIA - COMPONENTE EJE TRANSVERSAL - FORTALECIMIENTO INSTITUCIONAL"]
[null,"CRITERIOS","OBSERVACIÓN",null,"PUNTAJE OBTENIDO"]
[null,"FI. A. 1\nAsistencia y participación a capacitaciones convocadas por la Unidad para Víctimas."]
[null,"FI. A. 2\nSolicitudes de Asistencia técnica a la Unidad para las Víctimas por parte de la entidad territorial para capacitación de funcionarios en temas asistencia atención y reparación integral para las víctimas."]
[null,"FI. A. 3\nRealización sesiones de seguimiento del Comité Territorial de Justicia Transicional."]
[null,"FI. A. 4\nAsistencia a los comités departamentales de justicia transicional ampliados."]
[null,"FI. A. 5\nComités Territoriales de Justicia Transicional CTJT (sesiones ordinarias)."]
[null,"FI. A. 6\nEjecución de presupuesto en Fortalecimiento institucional."]
[null,"I. A. 1\nReportes FUT Categoría Victimas 1."]
[null,"CALIFICACIÓN ",null,null,{"$f":"IFERROR(AVERAGE(E99:E105),\"No aplica\")","v":"No aplica"}]
[]
[null," CRITERIOS ALCALDIA - COMPONENTE EJE TRANSVERSAL - PARTICIPACIÓN"]
[null,"CRITERIOS","OBSERVACIÓN",null,"PUNTAJE OBTENIDO"]
[null,"P. A. 1\nSocialización con las con las mesas de víctimas de la programación del Plan Operativo anual del PAT para la vigencia."]
[null,"P. A. 2\nRespuesta a las propuestas radicadas por parte de las mesas de participación."]
[null,"P. A. 3\nPropuestas acogidas por parte de las ET que fueron presentadas por las mesas de participación."]
[null,"P. A. 4\nFuncionamiento de la Mesa de participación efectiva de víctimas \n(apoyo logistica y tècnicoa la mesa)."]
[null,"P. A. 5\nApoyo presupuestal a las mesas de participación (Inclusión del plan de trabajo de la mesa en el PAT en los ejercicios anuales de planeación)."]
[null,"P. A. 6\nElección de las mesas de participación (Garantizar los recursos presupuestales para la elección de las mesas de participación 2021)."]
[null,"P. A. 7\nEjecución de presupuesto en Participaciòn."]
[null,"CALIFICACIÓN ",null,null,{"$f":"IFERROR(AVERAGE(E110:E116),\"No aplica\")","v":"No aplica"}]
[]
[null," CRITERIOS ALCALDIA - COMPONENTE EJE TRANSVERSAL - SISTEMAS DE INFORMACIÓN"]
[null,"CRITERIOS","OBSERVACIÓN",null,"PUNTAJE OBTENIDO"]
[null,"SI. A. 1\nFormulación y aprobación de los planes de mejoramiento del plan operativo de sistemas de información POSI."]
[null,"SI. A. 2\nIntercambio de información."]
[null,"SI. A. 3\nCierre de Censos poblacionales para masivos (desplazamiento, confinamiento y atentados terroristas)."]
[null,"SI. A. 4\nEjecución de presupuesto en Sistemas de Informaciòn."]
[null,"CALIFICACIÓN ",null,null,{"$f":"IFERROR(AVERAGE(E121:E124),\"No aplica\")","v":"No aplica"}]
[]
[]
[null,"RESULTADOS  AGREGADOS"]
[null,"AGREGADO DE RESULTADOS",null,null,"PUNTAJE OBTENIDO"]
[null,"COMPONENTE DE PREVENCIÓN (10%) ",null,null,{"$f":"E28","v":"No aplica"}]
[null,"COMPONENTE DE ASISTENCIA Y ATENCIÓN (50%)",null,null,{"$f":"E58","v":"No aplica"}]
[null,"COMPONENTE DE REPARACIÓN INTEGRAL(10%)",null,null,{"$f":"AVERAGE(E66,E74,E87,E95)","v":{"$error":"#DIV/0!"}}]
[null,"COMPONENTE EJE TRANSVERSAL (30%)",null,null,{"$f":"AVERAGE(E106,E117,E125)","v":{"$error":"#DIV/0!"}}]
[null,"NIVEL DE CONTRIBUCIÓN 20XX",null,null,{"$f":"(E130*0.1)+(E131*0.5)+(E132*0.1)+(E133*0.3)","v":{"$error":"#VALUE!"}}]
[]
[null,"Interpretación del Nivel de Contribución"]
[null,"\n1. Nivel EJEMPLAR    ( Rango >75% - ≤ 100%): La entidad territorial evidencia una contribución significativa en la implementación de la política pública de víctimas, refleja compromiso y cumplimiento de competencias, ejecutadas acertadamente a través de planes, programas y proyectos; se recomienda sostener el resultado en las siguientes vigencias.\n \n2. Nivel  MEDIO  (Rango ≥  50% - ≤ 75%):  La entidad territorial demostró contribución en las acciones de implementación de la política pública de víctimas; pero debe revisar y fortalecer las acciones a través de planes, programas y proyectos en las medidas y componentes que se le indican en la evaluación de resultados registrados en el anexo técnico de la certificación obtenida.\n\n3. Nivel BAJA (Rango > 25% - < 50%): Este resultado refleja que, de acuerdo con las competencias señaladas en la Ley de Víctimas, se refleja una baja implementación de la política pública de víctimas, razón por la cual se debe incluir o fortalecer los planes, programas y proyectos, y, establecer mecanismos de acción para mejorar la contribución en la implementación de la política pública de víctimas, que conlleve al debido cumplimiento en la atención y reparación integral a las víctimas del conflicto armado ubicadas en el municipio. Debe revisar el anexo técnico de la certificación obtenida.\n\n4. Nivel DEFICIENTE (Rango ≥0% -  ≤ 25%): Este resultado refleja un deficiente cumplimiento de las competencias señaladas en la Ley de Víctimas, razón por la cual se debe crear, incluir y/o ajustar los planes, programas y proyectos, y, establecer mecanismos de acción inmediata para mejorar su contribución en la implementación de la política pública de víctimas. Esto permitirá un mejoramiento para el debido cumplimiento en la atención y reparación integral a las víctimas del conflicto armado ubicadas en el municipio. Debe revisar el anexo técnico de la certificación obtenida."]

{"sheet":"Gobernaciones","index":1,"n_rows":123,"n_cols":5,"rows_kept":123,"cut":false,"hidden":false,"merged":[[122,1,122,4],[121,1,121,4],[113,1,113,4],[119,1,119,3],[114,1,114,3],[115,1,115,3],[116,1,116,3],[117,1,117,3],[118,1,118,3],[107,2,107,3],[108,2,108,3],[109,2,109,3],[110,1,110,3],[101,2,101,3],[102,2,102,3],[103,1,103,3],[105,1,105,4],[106,2,106,3],[96,2,96,3],[97,2,97,3],[98,2,98,3],[99,2,99,3],[100,2,100,3],[89,2,89,3],[90,2,90,3],[92,1,92,3],[94,1,94,4],[95,2,95,3],[91,2,91,3],[85,2,85,3],[86,2,86,3],[87,2,87,3],[88,2,88,3],[78,2,78,3],[79,2,79,3],[80,2,80,3],[81,1,81,3],[83,1,83,4],[69,2,69,3],[70,2,70,3],[72,2,72,3],[64,1,64,3],[84,2,84,3],[73,1,73,3],[71,2,71,3],[75,1,75,4],[76,2,76,3],[77,2,77,3],[53,2,53,3],[58,1,58,4],[66,1,66,4],[67,2,67,3],[68,2,68,3],[59,2,59,3],[60,2,60,3],[61,2,61,3],[62,2,62,3],[63,2,63,3],[16,2,16,3],[17,2,17,3],[18,2,18,3],[13,1,13,4],[54,2,54,3],[55,2,55,3],[56,1,56,3],[29,1,29,4],[30,2,30,3],[31,2,31,3],[32,2,32,3],[33,2,33,3],[34,2,34,3],[35,2,35,3],[36,2,36,3],[37,2,37,3],[38,2,38,3],[39,2,39,3],[40,2,40,3],[41,2,41,3],[49,2,49,3],[50,2,50,3],[51,2,51,3],[52,2,52,3],[0,1,5,1],[0,2,1,3],[2,2,3,3],[4,2,5,3],[0,4,1,4],[2,4,3,4],[47,2,47,3],[48,2,48,3],[42,2,42,3],[43,2,43,3],[19,2,19,3],[20,2,20,3],[26,2,26,3],[25,2,25,3],[21,2,21,3],[22,2,22,3],[23,2,23,3],[24,2,24,3],[27,1,27,3],[44,2,44,3],[45,2,45,3],[46,2,46,3],[7,1,7,4],[15,1,15,4]]}
[null,null,"FORMATO DE DOCUMENTO TÉCNICO DE RESULTADOS GOBERNACIONES",null,"Código:200,07,15-38"]
[]
[null,null,"DIRECCIÓN DE GESTIÓN INTERINSTITUCIONAL",null,"Versión:01"]
[]
[null,null,"CERTIFICACIÓN TERRITORIAL",null,"Fecha: 16/12/2022"]
[null,null,null,null,"Paginas:"]
[]
[47,"CERTIFICACIÓN DE ENTIDADES TERRITORIALES \nRESULTADOS PRELIMINARES\nVIGENCIA - AÑO"]
[]
[null,"Gobernación"]
[]
[null,"Código DANE:",null,"Resultado:",{"$f":"IF(AND(E120>=0,E120<=0.25),\"Deficiente\",IF(AND(E120>0.25,E120<=0.5),\"Baja\",IF(AND(E120>0.5,E120<=0.75),\"Medio\",\"Ejemplar\")))","v":{"$error":"#DIV/0!"}}]
[]
[null,"La Unidad para la Atención y Reparación Integral a las Víctimas atendiendo a lo establecido en la Ley 1448 de 2011 en su artículo 168, realiza anualmente la certificación de las entidades territoriales del país. La cual es un mecanismo de seguimiento a la Política Pública de Víctimas y tiene como objetivo medir la contribución de las entidades territoriales al goce efectivo de los derechos de las víctimas, a través del cumplimiento de sus competencias en materia de prevención, protección, asistencia, atención y reparación integral, en el marco de las obligaciones o competencias contempladas en la Ley.\nPara la vigencia 2021, la medición de la Certificación Territorial se fundamenta en los resultados de la implementación de las acciones y gestión realizada por las entidades territoriales de acuerdo con los componentes de la Política Pública de víctimas, así como sus competencias territoriales. Lo anterior, permite valorar la contribución al goce efectivo de los derechos de la población víctima en la implementación y seguimiento a la política pública de víctimas en su territorio.  "]
[]
[null,"  CRITERIOS GOBERNACIÓN - COMPONENTE DE PREVENCIÓN Y PROTECCIÓN"]
[null,"CRITERIOS","OBSERVACIÓN",null,"PUNTAJE OBTENIDO"]
[null,"PyP. G. 1\nAprobación/actualización/validación del Plan Integral de Prevención y Protección"]
[null,"PyP. G. 2 \nParticipación de los delegados de las mesas de víctimas en la aprobación/ actualización/validación del Plan Integral de Prevención y Protección"]
[null,"PyP. G. 3\nRealización de capacitaciones a víctimas/funcionarios en temas de Derechos Humanos.\nImplementación del  PIPP\n(Criterio opcional)"]
[null,"PyP. G. 4\nCumplimento de las recomendaciones establecidas para la EETT en las Alertas Tempranas (CIPRAT)"]
[null,"PyP. G. 5\nAcciones y procesos de sensibilización para prevenir el reclutamiento forzado de niños, niñas y adolescentes por parte de actores ilegales realizados.\n (Prevención a la vida, integridad, libertad y seguridad)."]
[null,"PyP. G. 6\nAcciones y procesos de sensibilización que requiere el municipio para prevenir el riesgo de violencia sexual por parte de actores armados realizados. (Prevención a la vida, integridad, libertad y seguridad)."]
[null,"PyP. G. 7\nAprobación/actualización/validación del Plan de Contingencia."]
[null,"PyP. G. 8\nParticipación de los delegados de las mesas de víctimas en la elaboración y/o actualización del Plan de contingencia."]
[null,"PyP. G. 9\nAcciones implementadas en el marco de la ruta de protección a personas y/o comunidades a cargo de la entidad territorial."]
[null,"PyP. G. 10\nPresupuesto en el componente de Prevención"]
[null,"CALIFICACIÓN ",null,null,{"$f":"AVERAGE(E18:E27)","v":{"$error":"#DIV/0!"}}]
[]
[null,"  CRITERIOS GOBERNACIÓN - COMPONENTE DE ASISTENCIA Y ATENCIÓN"]
[null,"CRITERIOS","OBSERVACIÓN",null,"PUNTAJE OBTENIDO"]
[null,"AyA. G. 1\nAyuda Humanitaria Inmediata brindada por parte de las Gobernaciones durante vigencia fiscal."]
[null,"AyA. G. 2\nEjecución del presupuesto asignado durante la vigencia fiscal en la medida de AHÍ"]
[null,"AyA. G. 3\nHogares víctimas ubicados en el sector rural y urbano que serán vinculados a programas de mejoramiento de vivienda."]
[null,"AyA. G. 4\nHogares víctimas, incluidos en el RUV, que serán vinculados a programas para adquisición de vivienda propia por la administración municipal en el sector rural y urbano."]
[null,"AyA. G. 5\nEjecución del presupuesto asignado durante la vigencia fiscal en la medida de vivienda."]
[null,"AyA. G. 6\nEjecución del presupuesto asignado durante la vigencia fiscal en la medida de salud."]
[null,"AyA. G. 7\nNúmero niñas, niños y adolescentes víctimas del conflicto en edades escolares, que fueron vinculados al nivel básica y media de educación en la vigencia fiscal."]
[null,"AyA. G. 8\nNúmero niñas, niños y adolescentes víctimas en edades escolares, incluidos en programas de permanencia/calidad."]
[null,"AyA. G. 9\nEjecución de presupuesto asignado durante la vigencia fiscal en la medida de Educación."]
[null,"AyA. G. 10\nPersonas víctimas que fueron vinculados a programas de educación flexible\n(Criterio Opcional)"]
[null,"AyA. G. 11\nNúmero de convenios realizados con universidades públicas para educación superior\n(Criterio Opcional)"]
[null,"AyA. G. 12\nPersonas víctimas vinculados a programas/estrategias/proyectos de emprendimiento en la zona urbana y rural."]
[null,"AyA. G. 13\nPersonas víctimas, con unidades productivas, que fueron vinculados a programas/estrategias/proyectos de fortalecimiento de unidades productivas en la zona urbana y rural."]
[null,"AyA. G. 14\nPersonas víctimas, que fueron vinculados a programas/estrategias/proyectos de empleabilidad en la zona rural y urbana."]
[null,"AyA. G. 15\nPersonas víctimas, que fueron vinculados a programas/estrategias/proyectos de formación para el trabajo en la zona rural."]
[null,"AyA. G. 16\nEjecución de presupuesto asignado durante la vigencia fiscal en la medida de generación de ingresos."]
[null,"AyA. G. 17\nCaracterización de oferta territorial."]
[null,"AyA. G. 18\nNúmero de víctimas vinculadas a programas y/o estrategias de alimentación."]
[null,"AyA. G. 19\nEjecución de presupuesto asignado durante la vigencia fiscal en la medida de Seguridad alimentaria."]
[null,"AyA. G. 20\nNúmero de asistencias fúnebres entregadas oportunamente."]
[null,"AyA. G. 21\nEjecución de presupuesto asignado durante la vigencia fiscal en la medida de asistencia funeraria."]
[null,"AyA. G. 22\nDesignación de un enlace municipal y/o departamental responsable de la atención para el acompañamiento, información y orientación a las víctimas."]
[null,"AyA. G. 23\nPermanencia del enlace municipal de víctimas durante toda la vigencia fiscal."]
[null,"AyA. G. 24\nEjecución del presupuesto asignado durante la vigencia fiscal para el funcionamiento de Centros Regionales."]
[null,"AyA. G. 25\nEAcciones de gestión de la entidad Territorial, para la realización de jornadas móviles para la orientación y atención de las víctimas en las zonas más apartadas y de difícil acceso\n(Criterio Opcional)"]
[null,"CALIFICACIÓN ",null,null,{"$f":"AVERAGE(E32:E56)","v":{"$error":"#DIV/0!"}}]
[]
[null,"  CRITERIOS GOBERNACIÓN - COMPONENTE REPARACIÓN INTEGRAL - REPARACIÓN INDIVIDUAL"]
[null,"CRITERIOS","OBSERVACIÓN",null,"PUNTAJE OBTENIDO"]
[null,"RI. G. 1\n Implementación de estrategias de rehabilitación desarrolladas por la entidad territorial."]
[null,"RI. G. 2\nEjecución del presupuesto asignado durante la vigencia fiscal  en la medida de rehabilitación."]
[null,"RI. G. 3\nNúmero de acciones de medidas de satisfacción y reparación simbólica concertadas e implementadas en su jurisdicción durante la vigencia."]
[null,"RI. G. 4\nEjecución de presupuesto a las medidas de satisfacción."]
[null,"CALIFICACIÓN ",null,null,{"$f":"AVERAGE(E61:E64)","v":{"$error":"#DIV/0!"}}]
[]
[null,"  CRITERIOS GOBERNACIÓN - COMPONENTE DE REPARACIÓN INTEGRAL - RETORNOS Y REUBICACIÓN"]
[null,"CRITERIOS","OBSERVACIÓN",null,"PUNTAJE OBTENIDO"]
[null,"R&R. G. 1\nSeguimiento a los planes de Retorno Y Reubicación en el marco de los CTJT."]
[null,"R&R. G. 2\nApreciaciones de seguridad de su jurisdicción vigentes \n(criterio opcional)."]
[null,"R&R. G. 3\nPlaneación estratégica/destinación de recursos para atención a población víctima de desplazamiento forzado (RyR) en el PAT."]
[null,"R&R. G. 4\nInversión presupuestal de las entidades territoriales en otras entidades territoriales para el apoyo de Retornos y Reubicación."]
[null,"R&R. G. 5\nEjecución de presupuesto del componente de retornos y reubicación "]
[null,"CALIFICACIÓN ",null,null,{"$f":"AVERAGE(E69:E73)","v":{"$error":"#DIV/0!"}}]
[]
[null,"  CRITERIOS GOBERNACIÓN - COMPONENTE DE REPARACIÓN INTEGRAL - RESTITUCIÓN DE TIERRAS"]
[null,"CRITERIOS","OBSERVACIÓN",null,"PUNTAJE OBTENIDO"]
[null,"RT. G. 1\nAvance de ejecución del presupuesto incluido en el PAT para atender el cumplimiento de las sentencias de Restitución de Tierras en municipios con sentencias de Restitución de Tierras proferidas."]
[null,"RT. G. 2\nAtención a personas o comunidades reconocidas en providencias judiciales de restitución de tierras notificadas, en el marco del cumplimiento de órdenes que vinculan a la entidad territorial."]
[null,"RT. G. 3\nSocialización de la gestión en el cumplimiento de órdenes de sentencias de restitución de tierras que vinculan a la entidad territorial."]
[null,"RT. G. 4\nEntidades territoriales que incluyeron en el PAT programas, proyectos y recursos para garantizar la atención a población victima restituida en cumplimiento a las órdenes contenidas en los fallos."]
[null,"CALIFICACIÓN ",null,null,{"$f":"AVERAGE(E78:E81)","v":{"$error":"#DIV/0!"}}]
[]
[null,"  CRITERIOS GOBERNACIÓN - COMPONENTE EJE TRANSVERSAL - FORTALECIMIENTO INSTITUCIONAL"]
[null,"CRITERIOS","OBSERVACIÓN",null,"PUNTAJE OBTENIDO"]
[null,"FI. G. 1\nAsistencia técnica a los municipios de su jurisdicción para la implementación de la política pública de Víctimas."]
[null,"FI. G. 2\nAsistencia y participación a capacitaciones convocadas por las Unidad para Víctimas."]
[null,"FI. G. 3\nSolicitudes de Asistencia técnica a la Unidad para las Víctimas por parte de la entidad territorial para capacitación de funcionarios en temas asistencia atención y reparación integral para las víctimas."]
[null,"FI. G. 4\nComités departamentales de justicia transicional ampliados."]
[null,"FI. G. 5\nComités Territoriales de Justicia Transicional CTJT\n(sesiones ordinarias)."]
[null,"FI. G. 6\nEjecución de presupuesto en Fortalecimiento institucional."]
[null,"I. G. 1\nReportes FUT Categoría Victimas 1."]
[null,"CALIFICACIÓN ",null,null,{"$f":"AVERAGE(E86:E92)","v":{"$error":"#DIV/0!"}}]
[]
[null,"  CRITERIOS GOBERNACIÓN - COMPONENTE EJE TRANSVERSAL - PARTICIPACIÓN"]
[null,"CRITERIOS","OBSERVACIÓN",null,"PUNTAJE OBTENIDO"]
[null,"P. G. 1\nSocialización con las con las mesas de víctimas de la programación del Plan Operativo anual del PAT para la vigencia."]
[null,"P. G. 2\nRespuesta a las propuestas radicadas por parte de las mesas de participación."]
[null,"P. G. 3\nPropuestas acogidas por parte de las ET que fueron presentadas por las mesas de participación."]
[null,"P. G. 4\nFuncionamiento de la Mesa de participación efectiva de víctimas \n(apoyo logistica y tècnicoa la mesa)."]
[null,"P. G. 5\nApoyo presupuestal a las mesas de participación (Inclusión del plan de trabajo de la mesa en el PAT en los ejercicios anuales de planeación)."]
[null,"P. G. 6\nElección de las mesas de participación (Garantizar los recursos presupuestales para la elección de las mesas de participación 2021)."]
[null,"P. G. 7\nEjecución de presupuesto en Participaciòn."]
[null,"CALIFICACIÓN ",null,null,{"$f":"AVERAGE(E97:E103)","v":{"$error":"#DIV/0!"}}]
[]
[null," CRITERIOS GOBERNACIÓN - CCOMPONENTE EJE TRANSVERSAL - SISTEMAS DE INFORMACIÓN"]
[null,"CRITERIOS","OBSERVACIÓN",null,"PUNTAJE OBTENIDO"]
[null,"SI. G. 1\nFormulación y aprobación de los planes de mejoramiento del plan operativo de sistemas de información POSI."]
[null,"SI. G. 2\nIntercambio de información."]
[null,"SI. G. 3\nEjecución de presupuesto en Sistemas de Informaciòn."]
[null,"CALIFICACIÓN ",null,null,{"$f":"AVERAGE(E108:E110)","v":{"$error":"#DIV/0!"}}]
[]
[]
[null,"RESULTADOS  AGREGADOS"]
[null,"AGREGADO DE RESULTADOS",null,null,"PUNTAJE OBTENIDO"]
[null,"COMPONENTE DE PREVENCIÓN (10%) ",null,null,{"$f":"E28","v":{"$error":"#DIV/0!"}}]
[null,"COMPONENTE DE ASISTENCIA Y ATENCIÓN (50%)",null,null,{"$f":"E57","v":{"$error":"#DIV/0!"}}]
[null,"COMPONENTE DE REPARACIÓN INTEGRAL(10%)",null,null,{"$f":"AVERAGE(E65,E74,E82)","v":{"$error":"#DIV/0!"}}]
[null,"COMPONENTE EJE TRANSVERSAL (30%)",null,null,{"$f":"AVERAGE(E93,E104,E111)","v":{"$error":"#DIV/0!"}}]
[null,"NIVEL DE CONTRIBUCIÓN 20XX",null,null,{"$f":"(E116*0.1)+(E117*0.5)+(E118*0.1)+(E119*0.3)","v":{"$error":"#DIV/0!"}}]
[]
[null,"Interpretación del Nivel de Contribución"]
[null,"\n1. Nivel EJEMPLAR    ( Rango >75% - ≤ 100%): La entidad territorial evidencia una contribución significativa en la implementación de la política pública de víctimas, refleja compromiso y cumplimiento de competencias, ejecutadas acertadamente a través de planes, programas y proyectos; se recomienda sostener el resultado en las siguientes vigencias.\n \n2. Nivel  MEDIO  (Rango > 50% - ≤ 75%):  La entidad territorial demostró contribución en las acciones de implementación de la política pública de víctimas; pero debe revisar y fortalecer las acciones a través de planes, programas y proyectos en las medidas y componentes que se le indican en la evaluación de resultados registrados en el anexo técnico de la certificación obtenida.\n\n3. Nivel BAJA (Rango > 25% - ≤ 50%): Este resultado refleja que, de acuerdo con las competencias señaladas en la Ley de Víctimas, se refleja una baja implementación de la política pública de víctimas, razón por la cual se debe incluir o fortalecer los planes, programas y proyectos, y, establecer mecanismos de acción para mejorar la contribución en la implementación de la política pública de víctimas, que conlleve al debido cumplimiento en la atención y reparación integral a las víctimas del conflicto armado ubicadas en el municipio. Debe revisar el anexo técnico de la certificación obtenida.\n\n4. Nivel DEFICIENTE (Rango ≥0% -  ≤ 25%): Este resultado refleja un deficiente cumplimiento de las competencias señaladas en la Ley de Víctimas, razón por la cual se debe crear, incluir y/o ajustar los planes, programas y proyectos, y, establecer mecanismos de acción inmediata para mejorar su contribución en la implementación de la política pública de víctimas. Esto permitirá un mejoramiento para el debido cumplimiento en la atención y reparación integral a las víctimas del conflicto armado ubicadas en el municipio. Debe revisar el anexo técnico de la certificación obtenida."]

{"sheet":"Control de Cambios","index":2,"n_rows":5,"n_cols":3,"rows_kept":5,"cut":false,"hidden":false,"merged":[[0,0,1,0],[0,1,1,1],[0,2,1,2]]}
["Versión","Fecha de Cambio","Descripción de la modificación"]
[]
[1,"2022-12-16","Creación del formato"]
[]
["Nota: Se debe registrar el control de cambios,pero esta hoja no se publica."]